fUST/lending_fUST_20250809
["ID","MTS","AMOUNT","RATE_DAILY","PERIOD"]
[378058784,1754712642676,-151.4877535,0.00021953,2]
[378058785,1754712642685,-153.19746771,0.00021953,2]
[378058786,1754712642694,-152.35217372,0.00021953,2]
[378058787,1754712642707,-151.0,0.00021953,2]
[378058788,1754712642717,-260.30979556,0.00021953,2]
[378058789,1754712642727,-253.74157055,0.00021953,2]
[378058790,1754712642737,-151.32428984,0.00021953,2]
[378058791,1754712642746,-151.7498476,0.00021953,2]
[378058792,1754712642757,-211.12981513,0.00021953,2]
[378058793,1754712642767,-151.0,0.00021953,2]
[378058794,1754712642778,-151.0,0.00021953,2]
[378058795,1754712642790,-500.0,0.00021973,2]
[378058796,1754712642801,-501.73607701,0.00021973,2]
[378058797,1754712642810,-501.24401283,0.00021973,2]
[378058798,1754712642819,-500.32070313,0.00021973,2]
[378058799,1754712642829,-501.70632933,0.00021973,2]
[378058800,1754712642839,-372.91962141,0.00021973,2]
[378058801,1754712642848,-510.46798977,0.00021973,2]
[378058802,1754712642858,-500.0,0.00021973,2]
[378058803,1754712642869,-513.81933619,0.00021973,2]
[378058805,1754712642878,-481.98549428,0.00021973,2]
[378058807,1754712642887,-500.0,0.00021973,2]
[378058808,1754712642897,-500.0,0.00021973,2]
[378058809,1754712642906,-500.0,0.00021973,2]
[378058810,1754712642916,-500.0,0.00021973,2]
[378058811,1754712642926,-500.0,0.00021973,2]
[378058812,1754712642935,-501.34992136,0.00021973,2]
[378058813,1754712642944,-502.70441836,0.00021973,2]
[378058814,1754712642953,-506.94670389,0.00021973,2]
[378058815,1754712642963,-500.0,0.00021973,2]
[378058816,1754712642972,-500.0,0.00021973,2]
[378058817,1754712642981,-500.0,0.00021973,2]
[378058818,1754712642991,-500.0,0.00021973,2]
[378058819,1754712643000,-553.67518927,0.00021973,2]
[378058820,1754712643010,-500.0,0.00021973,2]
[378058821,1754712643019,-500.0,0.00021973,2]
[378058822,1754712643029,-500.0,0.00021973,2]
[378058823,1754712643038,-500.0,0.00021973,2]
[378058824,1754712643047,-500.0,0.00021973,2]
[378058825,1754712643057,-500.0,0.00021973,2]
[378058826,1754712643067,-500.35263696,0.00021973,2]
[378058827,1754712643076,-500.0,0.00021973,2]
[378058828,1754712643085,-500.0,0.00021973,2]
[378058829,1754712643095,-500.0,0.00021973,2]
[378058830,1754712643104,-500.0,0.00021973,2]
[378058831,1754712643114,-500.0,0.00021973,2]
[378058832,1754712643123,-500.0,0.00021973,2]
[378058833,1754712643132,-500.0,0.00021973,2]
[378058834,1754712643141,-500.0,0.00021973,2]
[378058835,1754712643151,-500.0,0.00021973,2]
[378058836,1754712643160,-500.98404244,0.00021973,2]
[378058837,1754712643170,-500.0,0.00021973,2]
[378058838,1754712643179,-500.0,0.00021973,2]
[378058839,1754712643188,-500.0,0.00021973,2]
[378058840,1754712643198,-202.19835109,0.00021973,2]
[378058841,1754712643207,-151.0,0.00021973,7]
[378058842,1754712643216,-151.0,0.00021973,7]
[378058843,1754712643226,-151.0,0.00021973,7]
[378058844,1754712643235,-151.0,0.00021973,7]
[378058846,1754712643244,-151.0,0.00021973,7]
[378058847,1754712643253,-183.423669,0.00021973,7]
[378058848,1754712643263,-163.475326,0.00021973,7]
[378058849,1754712643272,-183.423669,0.00021973,7]
[378058850,1754712643281,-163.475326,0.00021973,7]
[378058851,1754712643291,-20000.0,0.00022,2]
[378058852,1754712643300,-153.08024,0.00022,7]
[378058853,1754712643309,-151.0,0.00022,7]
[378058854,1754712643318,-151.0,0.00022,7]
[378058855,1754712643328,-151.0,0.00022,7]
[378058856,1754712643337,-154.01442,0.00022,7]
[378058857,1754712643346,-151.0,0.00022,7]
[378058858,1754712643355,-151.580883,0.00022,7]
[378058859,1754712643365,-151.0,0.00022,7]
[378058860,1754712643374,-151.0,0.00022,7]
[378058861,1754712643383,-151.0,0.00022,7]
[378058862,1754712643392,-151.0,0.00022,7]
[378058863,1754712643482,-151.0,0.00022,7]
[378058864,1754712643502,-151.0,0.00022,7]
[378058865,1754712643513,-156.0,0.00022,2]
[378058866,1754712643524,-151.575442,0.00022032,7]
[378058867,1754712643534,-154.921697,0.000221,7]
[378058868,1754712643543,-151.0,0.000221,7]
[378058869,1754712643553,-203.71,0.000221,2]
[378058870,1754712643562,-12666.14847857,0.000221,7]
[378058871,1754712643571,-461.55179734,0.000221,7]
[378058872,1754712643580,-151.0,0.000221,7]
[378058873,1754712643590,-201.26894038,0.00022119,2]
[378058874,1754712643600,-168.0,0.0002212,2]
[378058875,1754712643609,-151.0,0.00022125,7]
[378058876,1754712643619,-151.0,0.00022125,7]
[378058877,1754712643628,-1848.8081496,0.00022125,2]
[378058878,1754712643638,-12666.14847857,0.00022131,3]
[378058879,1754712643648,-461.55179734,0.00022131,3]
[378058880,1754712643657,-151.0,0.00022131,7]
[378058881,1754712643667,-151.0,0.00022131,7]
[378058882,1754712643676,-151.0,0.00022131,7]
[378058883,1754712643686,-151.0,0.00022131,7]
[378058884,1754712643698,-151.0,0.00022131,7]
[378058885,1754712643712,-183.423669,0.00022131,7]
[378058886,1754712643721,-163.475326,0.00022131,7]
[378058887,1754712643730,-183.423669,0.00022131,7]
[378058888,1754712643740,-163.475326,0.00022131,7]
[378058889,1754712643749,-500.0,0.00022147,2]
[378058890,1754712643758,-168.0,0.00022147,2]
[378058891,1754712643768,-168.0,0.00022157,2]
[378058892,1754712643779,-2000.0,0.00022165,2]
[378058893,1754712643788,-2000.0,0.00022165,2]
[378058894,1754712643798,-925.73,0.00022165,2]
[378058895,1754712643807,-151.676585,0.00022165,7]
[378058896,1754712643817,-503.70740541,0.00022173,2]
[378058897,1754712643827,-501.44830093,0.00022173,2]
[378058898,1754712643836,-500.0,0.00022173,2]
[378058899,1754712643845,-500.0,0.00022173,2]
[378058900,1754712643854,-500.0,0.00022173,2]
[378058901,1754712643863,-500.0,0.00022173,2]
[378058902,1754712643872,-562.9285822,0.00022173,2]
[378058903,1754712643882,-500.0,0.00022173,2]
[378058904,1754712643891,-500.0,0.00022173,2]
[378058905,1754712643900,-500.0,0.00022173,2]
[378058906,1754712643909,-500.0,0.00022173,2]
[378058907,1754712643919,-500.0,0.00022173,2]
[378058908,1754712643928,-218.51840812,0.00022173,2]
[378058909,1754712643938,-503.00420125,0.00022173,2]
[378058910,1754712643947,-500.62607467,0.00022173,2]
[378058911,1754712643957,-300.81451058,0.00022173,2]
[378058912,1754712643968,-500.0,0.00022173,2]
[378058913,1754712643977,-500.0,0.00022173,2]
[378058914,1754712643986,-349.37854188,0.00022173,2]
[378058915,1754712643995,-150.0,0.00022173,2]
[378058916,1754712644005,-596.48551058,0.00022173,2]
[378058917,1754712644015,-500.0,0.00022173,2]
[378058918,1754712644023,-500.0,0.00022173,2]
[378058919,1754712644033,-500.0,0.00022173,2]
[378058920,1754712644043,-500.0,0.00022173,2]
[378058921,1754712644052,-500.0,0.00022173,2]
[378058922,1754712644061,-396.13352281,0.00022173,2]
[378058923,1754712644070,-500.0,0.00022173,2]
[378058924,1754712644080,-500.0,0.00022173,2]
[378058925,1754712644088,-500.0,0.00022173,2]
[378058926,1754712644098,-501.14074767,0.00022173,2]
[378058927,1754712644107,-500.0,0.00022173,2]
[378058928,1754712644116,-500.0,0.00022173,2]
[378058929,1754712644126,-168.67082871,0.00022173,2]
[378058930,1754712644135,-500.0,0.00022173,2]
[378058931,1754712644145,-500.0,0.00022173,2]
[378058932,1754712644154,-500.0,0.00022173,2]
[378058933,1754712644163,-500.0,0.00022173,2]
[378058934,1754712644172,-621.33073829,0.00022173,2]
[378058935,1754712644181,-500.0,0.00022173,2]
[378058936,1754712644191,-500.9738876,0.00022173,2]
[378058937,1754712644199,-500.0,0.00022173,2]
[378058938,1754712644209,-500.0,0.00022173,2]
[378058939,1754712644218,-500.0,0.00022173,2]
[378058940,1754712644227,-500.0,0.00022173,2]
[378058941,1754712644237,-500.0,0.00022173,2]
[378058942,1754712644247,-151.980071,0.00022173,7]
[378058943,1754712644256,-169.68891,0.00022173,7]
[378058944,1754712644266,-151.973005,0.00022173,7]
[378058945,1754712644275,-151.883634,0.00022173,7]
[378058946,1754712644285,-179.117147,0.00022173,7]
[378058947,1754712644294,-153.015428,0.00022173,7]
[378058948,1754712644304,-152.394121,0.00022173,7]
[378058949,1754712644313,-151.0,0.00022173,7]
[378058950,1754712644323,-151.0,0.00022191,7]
[378058951,1754712644335,-151.0,0.00022191,7]
[378058952,1754712644345,-151.0,0.00022191,7]
[378058953,1754712644354,-206.726464,0.00022191,7]
[378058954,1754712644363,-151.0,0.00022191,7]
[378058955,1754712644373,-151.0,0.00022191,7]
[378058956,1754712644384,-223.92490209,0.00022191,2]
[378058957,1754712644394,-461.12645199,0.00022191,2]
[378058958,1754712644405,-460.0,0.00022191,2]
[378058959,1754712644414,-460.0,0.00022191,2]
[378058960,1754712644423,-460.0,0.00022191,2]
[378058961,1754712644434,-460.0,0.00022191,2]
[378058962,1754712644443,-473.56707233,0.00022191,2]
[378058963,1754712644453,-460.0,0.00022191,2]
[378058964,1754712644462,-599.64,0.00022191,2]
[378058965,1754712644471,-151.0,0.00022191,7]
[378058966,1754712644481,-151.0,0.00022191,7]
[378058967,1754712644491,-447.8360474,0.00022191,2]
[378058968,1754712644500,-460.0,0.00022191,2]
[378058969,1754712644510,-472.36553321,0.00022191,2]
[378058970,1754712644520,-217.1684481,0.00022191,2]
[378058971,1754712644529,-168.54577211,0.00022191,2]
[378058972,1754712644538,-460.0,0.00022191,2]
[378058973,1754712644547,-460.0,0.00022191,2]
[378058974,1754712644556,-460.0,0.00022191,2]
[378058975,1754712644565,-460.0,0.00022191,2]
[378058976,1754712644575,-460.0,0.00022191,2]
[378058977,1754712644584,-460.0,0.00022191,2]
[378058978,1754712644593,-468.63180794,0.00022191,2]
[378058979,1754712644602,-460.0,0.00022191,2]
[378058980,1754712644612,-460.0,0.00022191,2]
[378058981,1754712644621,-460.0,0.00022191,2]
[378058982,1754712644631,-460.0,0.00022191,2]
[378058983,1754712644640,-460.0,0.00022191,2]
[378058984,1754712644650,-460.0,0.00022191,2]
[378058985,1754712644659,-477.42060541,0.00022191,2]
[378058986,1754712644669,-460.0,0.00022191,2]
[378058987,1754712644679,-460.0,0.00022191,2]
[378058988,1754712644688,-461.38484529,0.00022191,2]
[378058989,1754712644698,-460.0,0.00022191,2]
[378058990,1754712644711,-460.0,0.00022191,2]
[378058991,1754712644720,-460.0,0.00022191,2]
[378058992,1754712644731,-568.57669413,0.00022191,2]
[378058993,1754712644742,-151.0,0.00022191,7]
[378058994,1754712644753,-151.0,0.00022191,7]
[378058995,1754712644762,-460.0,0.00022191,2]
[378058996,1754712644774,-460.0,0.00022191,2]
[378058997,1754712644783,-460.0,0.00022191,2]
[378058998,1754712644793,-464.82689135,0.00022191,2]
[378058999,1754712644803,-464.05082737,0.00022191,2]
[378059000,1754712644813,-460.0,0.00022191,2]
[378059001,1754712644822,-460.0,0.00022191,2]
[378059002,1754712644832,-460.0,0.00022191,2]
[378059003,1754712644844,-460.0,0.00022191,2]
[378059004,1754712644853,-478.46438634,0.00022191,2]
[378059005,1754712644862,-460.0,0.00022191,2]
[378059006,1754712644872,-208.40669473,0.00022191,2]
[378059007,1754712644885,-460.0,0.00022191,2]
[378059008,1754712644893,-159.03083917,0.00022191,2]
[378059009,1754712644904,-460.0,0.00022191,2]
[378059010,1754712644914,-460.0,0.00022191,2]
[378059011,1754712644923,-460.0,0.00022191,2]
[378059012,1754712644933,-460.0,0.00022191,2]
[378059013,1754712644943,-460.0,0.00022191,2]
[378059014,1754712644954,-460.0,0.00022191,2]
[378059015,1754712644964,-460.0,0.00022191,2]
[378059016,1754712644973,-540.23411895,0.00022191,2]
[378059017,1754712644982,-340.03531147,0.00022191,2]
[378059018,1754712644992,-460.0,0.00022191,2]
[378059019,1754712645001,-183.423669,0.00022191,7]
[378059020,1754712645011,-470.13927802,0.00022191,2]
[378059021,1754712645021,-460.0,0.00022191,2]
[378059022,1754712645030,-163.475326,0.00022191,7]
[378059023,1754712645039,-183.423669,0.00022191,7]
[378059024,1754712645048,-460.0,0.00022191,2]
[378059025,1754712645057,-163.475326,0.00022191,7]
[378059026,1754712645067,-460.0,0.00022191,2]
[378059027,1754712645078,-475.39172222,0.00022191,2]
[378059028,1754712645087,-460.0,0.00022191,2]
[378059029,1754712645099,-460.0,0.00022191,2]
[378059030,1754712645109,-460.0,0.00022191,2]
[378059031,1754712645119,-460.0,0.00022191,2]
[378059032,1754712645128,-681.56,0.00022191,2]
[378059033,1754712645138,-270.85847705,0.00022191,2]
[378059034,1754712645147,-460.0,0.00022191,2]
[378059035,1754712645157,-464.15015856,0.00022191,2]
[378059036,1754712645166,-468.66278935,0.00022191,2]
[378059037,1754712645175,-460.0,0.00022191,2]
[378059038,1754712645184,-460.0,0.00022191,2]
[378059039,1754712645195,-460.0,0.00022191,2]
[378059040,1754712645206,-488.55,0.00022191,2]
[378059041,1754712645218,-460.0,0.00022191,2]
[378059042,1754712645228,-292.421384,0.00022191,7]
[378059043,1754712645237,-460.0,0.00022191,2]
[378059044,1754712645247,-460.0,0.00022191,2]
[378059045,1754712645258,-464.88125998,0.00022191,2]
[378059046,1754712645268,-460.0,0.00022191,2]
[378059047,1754712645277,-460.0,0.00022191,2]
[378059048,1754712645286,-474.38,0.00022191,2]
[378059049,1754712645296,-594.94,0.00022191,2]
[378059050,1754712645305,-460.0,0.00022191,2]
[378059051,1754712645315,-460.0,0.00022191,2]
[378059052,1754712645324,-460.0,0.00022191,2]
[378059053,1754712645334,-408.43937436,0.00022191,2]
[378059054,1754712645345,-875.39,0.00022191,2]
[378059055,1754712645354,-460.0,0.00022191,2]
[378059056,1754712645363,-710.82,0.00022191,2]
[378059057,1754712645372,-460.0,0.00022191,2]
[378059058,1754712645387,-460.0,0.00022191,2]
[378059059,1754712645398,-463.56752237,0.00022191,2]
[378059060,1754712645407,-460.0,0.00022191,2]
[378059061,1754712645416,-460.0,0.00022191,2]
[378059062,1754712645425,-460.0,0.00022191,2]
[378059063,1754712645435,-460.0,0.00022191,2]
[378059064,1754712645445,-460.0,0.00022191,2]
[378059065,1754712645454,-460.0,0.00022191,2]
[378059066,1754712645464,-460.0,0.00022191,2]
[378059067,1754712645474,-460.0,0.00022191,2]
[378059068,1754712645484,-1384.97,0.00022191,2]
[378059069,1754712645493,-460.0,0.00022191,2]
[378059070,1754712645503,-460.0,0.00022191,2]
[378059071,1754712645512,-460.0,0.00022191,2]
[378059072,1754712645522,-460.0,0.00022191,2]
[378059073,1754712645531,-464.64364585,0.00022191,2]
[378059074,1754712645629,-460.0,0.00022191,2]
[378059075,1754712645639,-469.18609626,0.00022191,2]
[378059076,1754712645648,-460.0,0.00022191,2]
[378059078,1754712645659,-460.0,0.00022191,2]
[378059079,1754712645669,-460.0,0.00022191,2]
[378059080,1754712645680,-460.0,0.00022191,2]
[378059081,1754712645690,-460.0,0.00022191,2]
[378059082,1754712645702,-460.0,0.00022191,2]
[378059083,1754712645711,-819.38,0.00022191,2]
[378059084,1754712645722,-460.0,0.00022191,2]
[378059085,1754712645732,-622.43,0.00022191,2]
[378059086,1754712645743,-483.00644821,0.00022191,2]
[378059087,1754712645754,-460.0,0.00022191,2]
[378059088,1754712645763,-460.0,0.00022191,2]
[378059089,1754712645775,-460.0,0.00022191,2]
[378059090,1754712645784,-460.0,0.00022191,2]
[378059091,1754712645794,-464.13402435,0.00022191,2]
[378059092,1754712645804,-460.0,0.00022191,2]
[378059093,1754712645813,-460.0,0.00022191,2]
[378059094,1754712645825,-460.0,0.00022191,2]
[378059095,1754712645834,-460.0,0.00022191,2]
[378059096,1754712645843,-460.0,0.00022191,2]
[378059097,1754712645854,-185.02682391,0.00022191,2]
[378059098,1754712645864,-151.0,0.00022191,7]
[378059099,1754712645874,-460.0,0.00022191,2]
[378059100,1754712645884,-151.0,0.00022191,7]
[378059101,1754712645893,-481.4,0.00022191,2]
[378059102,1754712645903,-464.756623,0.00022191,2]
[378059103,1754712645913,-460.0,0.00022191,2]
[378059105,1754712645922,-460.0,0.00022191,2]
[378059107,1754712645931,-460.0,0.00022191,2]
[378059108,1754712645940,-460.0,0.00022191,2]
[378059110,1754712645950,-466.5712123,0.00022191,2]
[378059112,1754712645959,-460.0,0.00022191,2]
[378059114,1754712645968,-460.0,0.00022191,2]
[378059115,1754712645977,-460.0,0.00022191,2]
[378059116,1754712645987,-460.0,0.00022191,2]
[378059117,1754712645997,-460.0,0.00022191,2]
[378059118,1754712646006,-1671.9,0.00022191,2]
[378059119,1754712646015,-460.0,0.00022191,2]
[378059120,1754712646027,-949.18,0.00022191,2]
[378059121,1754712646036,-460.0,0.00022191,2]
[378059122,1754712646046,-460.0,0.00022191,2]
[378059123,1754712646055,-460.0,0.00022191,2]
[378059124,1754712646065,-460.0,0.00022191,2]
[378059125,1754712646076,-460.0,0.00022191,2]
[378059126,1754712646086,-3051.85,0.00022191,2]
[378059127,1754712646097,-550.47,0.00022191,2]
[378059128,1754712646106,-460.0,0.00022191,2]
[378059129,1754712646115,-460.0,0.00022191,2]
[378059130,1754712646124,-460.0,0.00022191,2]
[378059131,1754712646133,-460.0,0.00022191,2]
[378059132,1754712646142,-460.0,0.00022191,2]
[378059133,1754712646151,-460.0,0.00022191,2]
[378059134,1754712646161,-460.0,0.00022191,2]
[378059135,1754712646170,-1072.11,0.00022191,2]
[378059136,1754712646179,-460.0,0.00022191,2]
[378059137,1754712646189,-799.57,0.00022191,2]
[378059138,1754712646198,-460.0,0.00022191,2]
[378059139,1754712646206,-460.0,0.00022191,2]
[378059140,1754712646214,-891.39,0.00022191,2]
[378059141,1754712646222,-460.0,0.00022191,2]
[378059142,1754712646230,-460.0,0.00022191,2]
[378059143,1754712646239,-168.0,0.00022198,2]
[378059144,1754712646248,-151.0,0.000222,5]
[378059145,1754712646259,-1084.37571396,0.00022201,2]
[378059147,1754712646269,-151.0,0.00022227,2]
[378059148,1754712646279,-247.73543846,0.00022227,2]
[378059149,1754712646288,-151.0,0.00022227,2]
[378059150,1754712646297,-151.0,0.00022227,2]
[378059151,1754712646307,-151.0,0.00022227,2]
[378059152,1754712646316,-177.55099956,0.00022227,2]
[378059153,1754712646326,-200.0,0.00022239,15]
[378059154,1754712646336,-200.0,0.00022239,15]
[378059155,1754712646345,-200.0,0.00022239,15]
[378059156,1754712646355,-200.0,0.00022239,15]
[378059157,1754712646364,-200.0,0.00022239,15]
[378059158,1754712646374,-358.0,0.0002224,2]
[378059159,1754712646383,-1053.50623022,0.00022249,2]
[378059160,1754712646392,-1037.47746014,0.00022284,2]
[378059161,1754712646401,-358.0,0.00022294,2]
[378059162,1754712646410,-843.54020476,0.000223,2]
[378059163,1754712646420,-27052.19365592,0.000223,2]
[378059164,1754712646429,-16157.0,0.000223,2]
[378059165,1754712646439,-153.55203,0.000223,7]
[378059166,1754712646448,-151.0,0.000223,7]
[378059167,1754712646458,-151.0,0.000223,7]
[378059168,1754712646468,-151.0,0.000223,7]
[378059169,1754712646478,-151.0,0.000223,7]
[378059170,1754712646487,-151.0,0.000223,7]
[378059171,1754712646496,-151.0,0.000223,7]
[378059172,1754712646506,-151.0,0.000223,7]
[378059173,1754712646515,-151.0,0.000223,7]
[378059174,1754712646525,-253.76221,0.000223,7]
[378059175,1754712646535,-183.423669,0.000223,7]
[378059176,1754712646544,-163.475326,0.000223,7]
[378059177,1754712646553,-183.423669,0.000223,7]
[378059178,1754712646562,-163.475326,0.000223,7]
[378059179,1754712646571,-151.0,0.000223,7]
[378059180,1754712646581,-249.0,0.00022356,2]
[378059181,1754712646590,-358.0,0.00022368,2]
[378059182,1754712646600,-358.0,0.00022398,2]
[378059183,1754712646609,-168.0,0.00022414,2]
[378059184,1754712646618,-1000.0,0.00022421,2]
[378059185,1754712646627,-502.00360691,0.00022421,2]
[378059186,1754712646637,-1000.0,0.00022421,2]
[378059187,1754712646646,-1000.0,0.00022421,2]
[378059188,1754712646655,-168.0,0.00022438,2]
[378059189,1754712646664,-358.0,0.00022461,2]
[378059190,1754712646675,-151.0,0.00022465,7]
[378059191,1754712646684,-151.0,0.00022465,7]
[378059192,1754712646695,-460.0,0.00022465,2]
[378059193,1754712646708,-209.41507103,0.00022465,2]
[378059194,1754712646717,-460.0,0.00022465,2]
[378059195,1754712646727,-460.0,0.00022465,2]
[378059196,1754712646736,-460.0,0.00022465,2]
[378059197,1754712646746,-599.64,0.00022465,2]
[378059198,1754712646756,-151.0,0.00022465,7]
[378059199,1754712646765,-151.0,0.00022465,7]
[378059200,1754712646780,-460.0,0.00022465,2]
[378059201,1754712646790,-460.0,0.00022465,2]
[378059202,1754712646799,-463.97936069,0.00022465,2]
[378059203,1754712646809,-460.0,0.00022465,2]
[378059204,1754712646818,-460.0,0.00022465,2]
[378059205,1754712646827,-460.0,0.00022465,2]
[378059206,1754712646837,-460.0,0.00022465,2]
[378059207,1754712646847,-460.0,0.00022465,2]
[378059208,1754712646857,-460.0,0.00022465,2]
[378059209,1754712646867,-460.0,0.00022465,2]
[378059210,1754712646876,-460.0,0.00022465,2]
[378059211,1754712646885,-460.0,0.00022465,2]
[378059212,1754712646895,-467.24089326,0.00022465,2]
[378059213,1754712646904,-460.0,0.00022465,2]
[378059214,1754712646913,-460.0,0.00022465,2]
[378059215,1754712646922,-151.0,0.00022465,7]
[378059216,1754712646931,-460.0,0.00022465,2]
[378059217,1754712646940,-460.0,0.00022465,2]
[378059218,1754712646950,-460.0,0.00022465,2]
[378059219,1754712646959,-460.0,0.00022465,2]
[378059220,1754712646969,-289.68256049,0.00022465,2]
[378059221,1754712646978,-482.96751032,0.00022465,2]
[378059222,1754712646988,-460.0,0.00022465,2]
[378059223,1754712646997,-460.0,0.00022465,2]
[378059224,1754712647006,-282.89374308,0.00022465,2]
[378059225,1754712647016,-302.94941612,0.00022465,2]
[378059226,1754712647026,-460.0,0.00022465,2]
[378059227,1754712647036,-460.0,0.00022465,2]
[378059228,1754712647046,-460.0,0.00022465,2]
[378059229,1754712647055,-460.0,0.00022465,2]
[378059230,1754712647064,-183.423669,0.00022465,7]
[378059231,1754712647074,-460.0,0.00022465,2]
[378059232,1754712647083,-163.475326,0.00022465,7]
[378059233,1754712647093,-183.423669,0.00022465,7]
[378059234,1754712647103,-460.0,0.00022465,2]
[378059235,1754712647112,-460.0,0.00022465,2]
[378059236,1754712647121,-163.475326,0.00022465,7]
[378059237,1754712647131,-460.0,0.00022465,2]
[378059238,1754712647140,-219.92921328,0.00022465,2]
[378059239,1754712647150,-460.0,0.00022465,2]
[378059240,1754712647159,-460.0,0.00022465,2]
[378059241,1754712647168,-681.56,0.00022465,2]
[378059242,1754712647178,-460.0,0.00022465,2]
[378059243,1754712647187,-460.0,0.00022465,2]
[378059244,1754712647197,-460.0,0.00022465,2]
[378059245,1754712647206,-460.0,0.00022465,2]
[378059246,1754712647215,-488.55,0.00022465,2]
[378059247,1754712647225,-460.0,0.00022465,2]
[378059248,1754712647235,-180.23528354,0.00022465,2]
[378059249,1754712647244,-460.0,0.00022465,2]
[378059250,1754712647254,-474.38,0.00022465,2]
[378059251,1754712647263,-594.94,0.00022465,2]
[378059252,1754712647273,-460.0,0.00022465,2]
[378059253,1754712647283,-460.0,0.00022465,2]
[378059254,1754712647292,-570.5940463,0.00022465,2]
[378059255,1754712647301,-875.39,0.00022465,2]
[378059256,1754712647311,-460.0,0.00022465,2]
[378059257,1754712647321,-710.82,0.00022465,2]
[378059258,1754712647330,-460.0,0.00022465,2]
[378059259,1754712647339,-431.97111399,0.00022465,2]
[378059260,1754712647348,-460.0,0.00022465,2]
[378059261,1754712647358,-460.0,0.00022465,2]
[378059262,1754712647367,-460.0,0.00022465,2]
[378059263,1754712647377,-460.0,0.00022465,2]
[378059264,1754712647387,-460.0,0.00022465,2]
[378059265,1754712647396,-460.0,0.00022465,2]
[378059266,1754712647406,-460.0,0.00022465,2]
[378059267,1754712647415,-1384.97,0.00022465,2]
[378059268,1754712647425,-460.0,0.00022465,2]
[378059269,1754712647434,-460.0,0.00022465,2]
[378059270,1754712647443,-460.0,0.00022465,2]
[378059271,1754712647453,-460.0,0.00022465,2]
[378059272,1754712647463,-460.0,0.00022465,2]
[378059273,1754712647472,-436.33723325,0.00022465,2]
[378059274,1754712647564,-460.0,0.00022465,2]
[378059275,1754712647576,-485.50622539,0.00022465,2]
[378059276,1754712647585,-460.0,0.00022465,2]
[378059277,1754712647595,-460.0,0.00022465,2]
[378059278,1754712647604,-819.38,0.00022465,2]
[378059279,1754712647614,-460.0,0.00022465,2]
[378059280,1754712647622,-622.43,0.00022465,2]
[378059281,1754712647632,-460.0,0.00022465,2]
[378059282,1754712647641,-460.0,0.00022465,2]
[378059283,1754712647651,-601.9392786,0.00022465,2]
[378059284,1754712647659,-460.0,0.00022465,2]
[378059285,1754712647669,-460.0,0.00022465,2]
[378059286,1754712647678,-460.0,0.00022465,2]
[378059287,1754712647687,-460.0,0.00022465,2]
[378059288,1754712647697,-460.0,0.00022465,2]
[378059289,1754712647710,-151.0,0.00022465,7]
[378059290,1754712647719,-481.4,0.00022465,2]
[378059291,1754712647728,-460.0,0.00022465,2]
[378059292,1754712647737,-460.0,0.00022465,2]
[378059293,1754712647747,-569.90145566,0.00022465,2]